[Event "*** Titled Tuesday Blitz"]
[Site "Chess.com"]
[Date "2020.05.12"]
[Round "4"]
[White "Y0ung_Capablanca"]
[Black "LyonBeast"]
[Result "0-1"]
[WhiteElo "2705"]
[BlackElo "2911"]
[TimeControl "180+1"]
[EndTime "10:39:29 PDT"]
[Termination "LyonBeast won by resignation"]

1. e4 {[%clk 0:03:00.9]} 1... c5 {[%clk 0:02:58.9]} 2. Nf3 {[%clk 0:03:00.6]}
2... d6 {[%clk 0:02:56]} 3. Bb5+ {[%clk 0:03:00.5]} 3... Nc6 {[%clk 0:02:54]} 4.
O-O {[%clk 0:02:59.3]} 4... Bd7 {[%clk 0:02:52.5]} 5. c3 {[%clk 0:02:59.3]} 5...
Nf6 {[%clk 0:02:49.5]} 6. Re1 {[%clk 0:02:59]} 6... a6 {[%clk 0:02:49.5]} 7. Bf1
{[%clk 0:02:57.5]} 7... Bg4 {[%clk 0:02:49.3]} 8. d4 {[%clk 0:02:55.5]} 8...
cxd4 {[%clk 0:02:46.8]} 9. cxd4 {[%clk 0:02:56.4]} 9... e5 {[%clk 0:02:43.8]}
10. d5 {[%clk 0:02:56]} 10... Nd4 {[%clk 0:02:42.2]} 11. Be3 {[%clk 0:02:56.5]}
11... Nxf3+ {[%clk 0:02:41.5]} 12. gxf3 {[%clk 0:02:56.2]} 12... Bd7 {[%clk
0:02:42]} 13. Nc3 {[%clk 0:02:47.7]} 13... Rg8 {[%clk 0:02:40.9]} 14. Rc1 {[%clk
0:02:39.2]} 14... g5 {[%clk 0:02:40.1]} 15. Na4 {[%clk 0:02:32.3]} 15... Nh5
{[%clk 0:02:18.4]} 16. Nb6 {[%clk 0:02:26.4]} 16... Rb8 {[%clk 0:02:18.5]} 17.
Qc2 {[%clk 0:02:22]} 17... g4 {[%clk 0:02:17.5]} 18. Qc7 {[%clk 0:02:09.2]}
18... gxf3+ {[%clk 0:02:16]} 19. Kh1 {[%clk 0:02:08.1]} 19... Nf6 {[%clk
0:01:59.8]} 20. Nxd7 {[%clk 0:01:48.5]} 20... Nxd7 {[%clk 0:01:59.9]} 21. Bh3
{[%clk 0:01:48.9]} 21... Nf6 {[%clk 0:01:46.9]} 22. Bf5 {[%clk 0:01:43.9]} 22...
Be7 {[%clk 0:01:40.4]} 23. Ba7 {[%clk 0:01:36.8]} 23... Qxc7 {[%clk 0:01:30.6]}
24. Rxc7 {[%clk 0:01:35.9]} 24... Ra8 {[%clk 0:01:30.7]} 25. Rxb7 {[%clk
0:01:35.2]} 25... Rg2 {[%clk 0:01:28.6]} 26. Rg1 {[%clk 0:01:24.3]} 26... Rxg1+
{[%clk 0:01:22.5]} 27. Kxg1 {[%clk 0:01:24.2]} 27... Bd8 {[%clk 0:01:23.2]} 28.
Be3 {[%clk 0:01:12.1]} 28... h5 {[%clk 0:01:22.6]} 29. h3 {[%clk 0:01:10.7]}
29... h4 {[%clk 0:01:21.3]} 30. Rb3 {[%clk 0:01:08.2]} 30... a5 {[%clk
0:01:18.9]} 31. Bh6 {[%clk 0:01:04.1]} 31... a4 {[%clk 0:01:14.3]} 32. Rxf3
{[%clk 0:01:03.7]} 32... Rb8 {[%clk 0:01:13.7]} 33. Bc1 {[%clk 0:01:03.8]} 33...
Rb4 {[%clk 0:01:12.5]} 34. Rc3 {[%clk 0:00:55.9]} 34... Nxe4 {[%clk 0:00:52.9]}
35. Rc8 {[%clk 0:00:55.7]} 35... Ke7 {[%clk 0:00:48.2]} 36. a3 {[%clk
0:00:41.7]} 36... Rd4 {[%clk 0:00:48.1]} 37. Be3 {[%clk 0:00:41.5]} 37... Rd1+
{[%clk 0:00:48.2]} 38. Kg2 {[%clk 0:00:42]} 38... Nc5 {[%clk 0:00:48.6]} 39. Ra8
{[%clk 0:00:33.1]} 39... Rxd5 {[%clk 0:00:45.8]} 40. Bg5+ {[%clk 0:00:30.6]}
40... f6 {[%clk 0:00:45.7]} 41. Bxh4 {[%clk 0:00:30.9]} 41... e4 {[%clk
0:00:41.3]} 42. Ra7+ {[%clk 0:00:29.8]} 42... Kf8 {[%clk 0:00:40.4]} 43. Bg6
{[%clk 0:00:30.1]} 43... Be7 {[%clk 0:00:35.3]} 44. Bg3 {[%clk 0:00:23.1]} 44...
Rg5 {[%clk 0:00:34.1]} 45. Ra8+ {[%clk 0:00:23.3]} 45... Kg7 {[%clk 0:00:34.3]}
46. Be8 {[%clk 0:00:23.4]} 46... e3 {[%clk 0:00:34.7]} 47. f4 {[%clk 0:00:21]}
47... Rd5 {[%clk 0:00:29.8]} 48. Kf3 {[%clk 0:00:21.5]} 48... Rd2 {[%clk
0:00:28.3]} 49. Bb5 {[%clk 0:00:21]} 49... Rxb2 {[%clk 0:00:27.9]} 50. Be2
{[%clk 0:00:19.6]} 50... d5 {[%clk 0:00:21.9]} 51. Ra7 {[%clk 0:00:19.7]} 51...
Kf7 {[%clk 0:00:21.2]} 52. h4 {[%clk 0:00:20]} 52... Rb3 {[%clk 0:00:17.8]} 53.
h5 {[%clk 0:00:19.4]} 53... Ne6 {[%clk 0:00:18.1]} 54. Kg4 {[%clk 0:00:16.9]}
54... f5+ {[%clk 0:00:16.5]} 55. Kh3 {[%clk 0:00:15.8]} 55... Nd4 {[%clk
0:00:16.9]} 56. Bd1 {[%clk 0:00:14.5]} 56... Rd3 {[%clk 0:00:16.9]} 57. Bxa4
{[%clk 0:00:14.5]} 57... e2 {[%clk 0:00:17.2]} 58. Kg2 {[%clk 0:00:11.6]} 58...
Rxg3+ {[%clk 0:00:17.1]} 59. Kf2 {[%clk 0:00:12.4]} 59... Re3 {[%clk 0:00:16.9]}
0-1

[Event "*** Titled Tuesday Blitz"]
[Site "Chess.com"]
[Date "2020.05.12"]
[Round "4"]
[White "levallem"]
[Black "Al_Shima"]
[Result "1-0"]
[WhiteElo "2143"]
[BlackElo "2427"]
[TimeControl "180+1"]
[EndTime "10:39:29 PDT"]
[Termination "levallem won by checkmate"]

1. d4 {[%clk 0:03:00.9]} 1... b5 {[%clk 0:02:55.5]} 2. e4 {[%clk 0:02:58.8]}
2... Bb7 {[%clk 0:02:55.2]} 3. f3 {[%clk 0:02:58.4]} 3... a6 {[%clk 0:02:54.6]}
4. Be3 {[%clk 0:02:57.9]} 4... e6 {[%clk 0:02:54.5]} 5. Qd2 {[%clk 0:02:58]}
5... d6 {[%clk 0:02:49]} 6. Bd3 {[%clk 0:02:58]} 6... c5 {[%clk 0:02:46.8]} 7.
c4 {[%clk 0:02:45.7]} 7... b4 {[%clk 0:02:43.8]} 8. d5 {[%clk 0:02:41.4]} 8...
e5 {[%clk 0:02:43.8]} 9. f4 {[%clk 0:02:33.9]} 9... Nd7 {[%clk 0:02:35.2]} 10.
Nf3 {[%clk 0:02:31.1]} 10... f6 {[%clk 0:02:28.1]} 11. O-O {[%clk 0:02:12]}
11... g6 {[%clk 0:02:22.3]} 12. fxe5 {[%clk 0:02:09.1]} 12... Nxe5 {[%clk
0:02:04.2]} 13. Nxe5 {[%clk 0:02:08.6]} 13... fxe5 {[%clk 0:02:02.7]} 14. Qf2
{[%clk 0:01:54]} 14... Qe7 {[%clk 0:01:52.5]} 15. Bg5 {[%clk 0:01:27.8]} 15...
Qg7 {[%clk 0:01:52.2]} 16. Nd2 {[%clk 0:01:15.7]} 16... Be7 {[%clk 0:01:50.9]}
17. Be3 {[%clk 0:01:00.4]} 17... Nf6 {[%clk 0:01:49.2]} 18. a3 {[%clk
0:00:55.5]} 18... a5 {[%clk 0:01:48]} 19. a4 {[%clk 0:00:54.2]} 19... O-O {[%clk
0:01:24.5]} 20. Qe2 {[%clk 0:00:49.4]} 20... Bc8 {[%clk 0:01:23.9]} 21. h3
{[%clk 0:00:48.5]} 21... Bd7 {[%clk 0:01:21.5]} 22. Rf3 {[%clk 0:00:40.2]} 22...
Nh5 {[%clk 0:01:20.2]} 23. b3 {[%clk 0:00:31.4]} 23... Rxf3 {[%clk 0:01:18.3]}
24. Nxf3 {[%clk 0:00:28]} 24... Bf6 {[%clk 0:01:10]} 25. Rf1 {[%clk 0:00:27.2]}
25... Nf4 {[%clk 0:01:06.9]} 26. Qd2 {[%clk 0:00:25.5]} 26... g5 {[%clk
0:01:03.3]} 27. Nh2 {[%clk 0:00:21.6]} 27... Rf8 {[%clk 0:00:59.6]} 28. Be2
{[%clk 0:00:21.6]} 28... Qg6 {[%clk 0:00:57.2]} 29. Bf3 {[%clk 0:00:20.5]} 29...
h5 {[%clk 0:00:56.1]} 30. Qd1 {[%clk 0:00:20.2]} 30... Be8 {[%clk 0:00:45.5]}
31. Qc2 {[%clk 0:00:17.2]} 31... Kg7 {[%clk 0:00:44.5]} 32. Rf2 {[%clk
0:00:17.4]} 32... Bd7 {[%clk 0:00:38.7]} 33. Qd1 {[%clk 0:00:17.1]} 33... Kh6
{[%clk 0:00:34]} 34. Nf1 {[%clk 0:00:14.4]} 34... g4 {[%clk 0:00:24.3]} 35. hxg4
{[%clk 0:00:13.2]} 35... hxg4 {[%clk 0:00:25.2]} 36. Be2 {[%clk 0:00:12.6]}
36... Bh4 {[%clk 0:00:11.3]} 37. g3 {[%clk 0:00:12.5]} 37... Bg5 {[%clk
0:00:11.3]} 38. Rh2+ {[%clk 0:00:12.1]} 38... Kg7 {[%clk 0:00:10.8]} 39. gxf4
{[%clk 0:00:11.8]} 39... exf4 {[%clk 0:00:10.9]} 40. Bd2 {[%clk 0:00:10.3]}
40... f3 {[%clk 0:00:10.7]} 41. Bd3 {[%clk 0:00:10.1]} 41... g3 {[%clk
0:00:02.8]} 42. Nxg3 {[%clk 0:00:08.1]} 42... Bxd2 {[%clk 0:00:03.6]} 43. Qxd2
{[%clk 0:00:08.2]} 43... Qxg3+ {[%clk 0:00:04.2]} 44. Kh1 {[%clk 0:00:08.7]}
44... f2 {[%clk 0:00:04.6]} 45. Bf1 {[%clk 0:00:08.8]} 45... Qf3+ {[%clk
0:00:04.4]} 46. Rg2+ {[%clk 0:00:08.2]} 46... Kf7 {[%clk 0:00:04.9]} 47. Qh6
{[%clk 0:00:05.2]} 47... Rg8 {[%clk 0:00:05.2]} 48. Qh7+ {[%clk 0:00:05.1]}
48... Kf6 {[%clk 0:00:05]} 49. Qxg8 {[%clk 0:00:03.7]} 49... Bh3 {[%clk
0:00:05.3]} 50. Qg7# {[%clk 0:00:02.9]} 1-0

[Event "*** Titled Tuesday Blitz"]
[Site "Chess.com"]
[Date "2020.05.12"]
[Round "4"]
[White "ameetghasi100"]
[Black "SlovenskiZmaj"]
[Result "0-1"]
[WhiteElo "2707"]
[BlackElo "2535"]
[TimeControl "180+1"]
[EndTime "10:39:31 PDT"]
[Termination "SlovenskiZmaj won on time"]

1. Nf3 {[%clk 0:03:00.9]} 1... d6 {[%clk 0:02:59.8]} 2. g3 {[%clk 0:03:01.8]}
2... f5 {[%clk 0:03:00.4]} 3. d4 {[%clk 0:03:01.1]} 3... Nf6 {[%clk 0:03:00.8]}
4. Bg2 {[%clk 0:03:01.7]} 4... g6 {[%clk 0:03:01.4]} 5. O-O {[%clk 0:03:02.6]}
5... Bg7 {[%clk 0:03:02]} 6. c4 {[%clk 0:03:02.8]} 6... O-O {[%clk 0:03:02.5]}
7. Nc3 {[%clk 0:03:02]} 7... c6 {[%clk 0:03:03.2]} 8. d5 {[%clk 0:03:00.2]} 8...
e5 {[%clk 0:03:03.5]} 9. dxc6 {[%clk 0:02:49.6]} 9... bxc6 {[%clk 0:02:59.2]}
10. b3 {[%clk 0:02:46.9]} 10... e4 {[%clk 0:02:51]} 11. Nd4 {[%clk 0:02:44.6]}
11... Qe7 {[%clk 0:02:39.6]} 12. Qc2 {[%clk 0:02:26.7]} 12... c5 {[%clk
0:02:36.5]} 13. Ndb5 {[%clk 0:02:24.7]} 13... a6 {[%clk 0:02:36.5]} 14. Na3
{[%clk 0:02:25.1]} 14... Nc6 {[%clk 0:02:34.8]} 15. Qd1 {[%clk 0:01:54.2]} 15...
Be6 {[%clk 0:02:28.7]} 16. Nc2 {[%clk 0:01:51.8]} 16... Ng4 {[%clk 0:02:18.8]}
17. Bb2 {[%clk 0:01:49.2]} 17... Nd4 {[%clk 0:01:52.9]} 18. Na4 {[%clk
0:01:35.2]} 18... Nxc2 {[%clk 0:01:39]} 19. Qxc2 {[%clk 0:01:34.1]} 19... Rad8
{[%clk 0:01:30.7]} 20. Nc3 {[%clk 0:01:13.6]} 20... h5 {[%clk 0:01:13.4]} 21. h3
{[%clk 0:01:06.2]} 21... Ne5 {[%clk 0:01:02.5]} 22. f4 {[%clk 0:01:05]} 22...
Nc6 {[%clk 0:00:59.9]} 23. h4 {[%clk 0:00:53.4]} 23... Bd4+ {[%clk 0:00:50.1]}
24. Kh2 {[%clk 0:00:52.6]} 24... Qg7 {[%clk 0:00:41.1]} 25. Qd2 {[%clk
0:00:43.2]} 25... Rd7 {[%clk 0:00:29.4]} 26. Rad1 {[%clk 0:00:42.2]} 26... Rfd8
{[%clk 0:00:28.2]} 27. Qc1 {[%clk 0:00:33.6]} 27... Nb4 {[%clk 0:00:24.7]} 28.
Ba1 {[%clk 0:00:27.2]} 28... Bxc3 {[%clk 0:00:15.3]} 29. Qxc3 {[%clk 0:00:24.2]}
29... Qxc3 {[%clk 0:00:14.1]} 30. Bxc3 {[%clk 0:00:25.1]} 30... Nxa2 {[%clk
0:00:14.8]} 31. Bf6 {[%clk 0:00:25.3]} 31... Rb8 {[%clk 0:00:14.6]} 32. Ra1
{[%clk 0:00:24.4]} 32... Nb4 {[%clk 0:00:15.2]} 33. Rfc1 {[%clk 0:00:21.2]}
33... Kf7 {[%clk 0:00:14.8]} 34. Bc3 {[%clk 0:00:21.6]} 34... Rb6 {[%clk
0:00:15.2]} 35. Kg1 {[%clk 0:00:19.5]} 35... Rdb7 {[%clk 0:00:14.8]} 36. Rd1
{[%clk 0:00:17.6]} 36... Ke7 {[%clk 0:00:14.2]} 37. Ra3 {[%clk 0:00:12.9]} 37...
Nc2 {[%clk 0:00:13.1]} 38. Ra2 {[%clk 0:00:13.1]} 38... Ne3 {[%clk 0:00:13.3]}
39. Rc1 {[%clk 0:00:13.5]} 39... Rxb3 {[%clk 0:00:12.6]} 40. Rxa6 {[%clk
0:00:13.2]} 40... Bxc4 {[%clk 0:00:13.1]} 41. Ra8 {[%clk 0:00:11.8]} 41... Ke6
{[%clk 0:00:13.3]} 42. Rg8 {[%clk 0:00:10.7]} 42... Bxe2 {[%clk 0:00:10.8]} 43.
Rxg6+ {[%clk 0:00:10.2]} 43... Kd5 {[%clk 0:00:11.3]} 44. Bh3 {[%clk 0:00:09.2]}
44... Bg4 {[%clk 0:00:11.2]} 45. Bxg4 {[%clk 0:00:08.6]} 45... Nxg4 {[%clk
0:00:11.9]} 46. Rg5 {[%clk 0:00:08.8]} 46... Kc4 {[%clk 0:00:11.9]} 47. Be1+
{[%clk 0:00:08.2]} 47... Kd3 {[%clk 0:00:12.3]} 48. Rxf5 {[%clk 0:00:08.7]}
48... Rb1 {[%clk 0:00:11.4]} 49. Rd5+ {[%clk 0:00:08.6]} 49... Ke3 {[%clk
0:00:11.8]} 50. Rcd1 {[%clk 0:00:07.2]} 50... Ke2 {[%clk 0:00:12]} 51. R5d2+
{[%clk 0:00:04.6]} 51... Kf3 {[%clk 0:00:12.4]} 52. Rxd6 {[%clk 0:00:05.5]}
52... e3 {[%clk 0:00:12.3]} 53. R6d3 {[%clk 0:00:04.5]} 53... Ke2 {[%clk
0:00:12.2]} 0-1

[Event "*** Titled Tuesday Blitz"]
[Site "Chess.com"]
[Date "2020.05.12"]
[Round "4"]
[White "GelmanAlexander"]
[Black "JonahWillow"]
[Result "1-0"]
[WhiteElo "2557"]
[BlackElo "2688"]
[TimeControl "180+1"]
[EndTime "10:39:32 PDT"]
[Termination "GelmanAlexander won by resignation"]

1. c4 {[%clk 0:03:00.9]} 1... c5 {[%clk 0:02:59.3]} 2. Nf3 {[%clk 0:02:59.6]}
2... Nc6 {[%clk 0:02:59.3]} 3. e3 {[%clk 0:02:59.4]} 3... Nf6 {[%clk 0:02:59.1]}
4. a3 {[%clk 0:02:57.5]} 4... g6 {[%clk 0:02:57.7]} 5. d3 {[%clk 0:02:57.5]}
5... Bg7 {[%clk 0:02:57.6]} 6. Be2 {[%clk 0:02:58]} 6... O-O {[%clk 0:02:58.1]}
7. O-O {[%clk 0:02:58.3]} 7... d5 {[%clk 0:02:57.2]} 8. cxd5 {[%clk 0:02:58.5]}
8... Nxd5 {[%clk 0:02:58.1]} 9. Nbd2 {[%clk 0:02:59]} 9... b6 {[%clk 0:02:55.6]}
10. Qc2 {[%clk 0:02:59.5]} 10... Bb7 {[%clk 0:02:55.4]} 11. Ne4 {[%clk
0:03:00.1]} 11... Rc8 {[%clk 0:02:50.1]} 12. Bd2 {[%clk 0:03:00.2]} 12... Nf6
{[%clk 0:02:40]} 13. Ng3 {[%clk 0:02:57.5]} 13... e5 {[%clk 0:02:37.1]} 14. Rac1
{[%clk 0:02:55.3]} 14... a5 {[%clk 0:02:33.8]} 15. Rfd1 {[%clk 0:02:52.3]} 15...
Qe7 {[%clk 0:02:30.1]} 16. Qb3 {[%clk 0:02:51.9]} 16... Nd7 {[%clk 0:02:23.5]}
17. h4 {[%clk 0:02:45.9]} 17... h6 {[%clk 0:02:21.9]} 18. h5 {[%clk 0:02:45.3]}
18... g5 {[%clk 0:02:21.9]} 19. Nf5 {[%clk 0:02:43.9]} 19... Qf6 {[%clk
0:02:18.4]} 20. e4 {[%clk 0:02:21.6]} 20... Nd4 {[%clk 0:02:08.4]} 21. N3xd4
{[%clk 0:02:21.2]} 21... exd4 {[%clk 0:02:08.8]} 22. Rf1 {[%clk 0:02:05.7]}
22... c4 {[%clk 0:01:10]} 23. Rxc4 {[%clk 0:01:58.4]} 23... Nc5 {[%clk
0:01:08.2]} 24. Qa2 {[%clk 0:01:31.2]} 24... Qe6 {[%clk 0:00:49.5]} 25. b3
{[%clk 0:00:48.6]} 25... Ba6 {[%clk 0:00:43.6]} 26. Nxg7 {[%clk 0:00:39.8]}
26... Kxg7 {[%clk 0:00:38.4]} 27. Rxd4 {[%clk 0:00:38.1]} 27... Qxb3 {[%clk
0:00:35.3]} 28. Qa1 {[%clk 0:00:35.6]} 28... Kg8 {[%clk 0:00:34.7]} 29. Rd6
{[%clk 0:00:33.5]} 29... Ne6 {[%clk 0:00:30.3]} 30. Rb1 {[%clk 0:00:26.9]} 30...
Qc2 {[%clk 0:00:29.7]} 31. Be3 {[%clk 0:00:27.1]} 31... Qxe2 {[%clk 0:00:29.2]}
32. Rbxb6 {[%clk 0:00:24]} 32... Bxd3 {[%clk 0:00:26.3]} 33. Rxe6 {[%clk
0:00:23.5]} 33... fxe6 {[%clk 0:00:25.5]} 34. Rxe6 {[%clk 0:00:24.4]} 34... Bxe4
{[%clk 0:00:10.2]} 35. Rxe4 {[%clk 0:00:19.8]} 35... Qc2 {[%clk 0:00:10.6]} 36.
Re6 {[%clk 0:00:17.2]} 36... Qc3 {[%clk 0:00:11.2]} 37. Qb1 {[%clk 0:00:15.2]}
37... Qc2 {[%clk 0:00:09.3]} 38. Rg6+ {[%clk 0:00:14]} 38... Kh8 {[%clk
0:00:08.6]} 39. Qb6 {[%clk 0:00:13]} 39... Qd1+ {[%clk 0:00:03.6]} 40. Kh2
{[%clk 0:00:13.3]} 40... Qd7 {[%clk 0:00:03.8]} 41. Rxh6+ {[%clk 0:00:12.7]}
41... Kg8 {[%clk 0:00:04.7]} 42. Rg6+ {[%clk 0:00:12.6]} 42... Kh8 {[%clk
0:00:05]} 43. Rh6+ {[%clk 0:00:06.9]} 43... Kg8 {[%clk 0:00:05.4]} 44. Qg6+
{[%clk 0:00:06.3]} 44... Qg7 {[%clk 0:00:05.8]} 45. Qe6+ {[%clk 0:00:06.6]}
45... Qf7 {[%clk 0:00:06.2]} 46. Rg6+ {[%clk 0:00:06.9]} 46... Kh7 {[%clk
0:00:06.9]} 47. Qe4 {[%clk 0:00:06.3]} 47... Qf5 {[%clk 0:00:06.5]} 48. Qe7+
{[%clk 0:00:05.8]} 48... Qf7 {[%clk 0:00:06.7]} 49. Qxg5 {[%clk 0:00:05.5]}
49... Qc7+ {[%clk 0:00:06.7]} 50. g3 {[%clk 0:00:05.3]} 50... Kh8 {[%clk
0:00:02.7]} 51. Rh6+ {[%clk 0:00:04.9]} 51... Qh7 {[%clk 0:00:03.6]} 52. Bd4+
{[%clk 0:00:05]} 1-0

[Event "*** Titled Tuesday Blitz"]
[Site "Chess.com"]
[Date "2020.05.12"]
[Round "4"]
[White "ZverevLev"]
[Black "djano"]
[Result "0-1"]
[WhiteElo "2104"]
[BlackElo "2442"]
[TimeControl "180+1"]
[EndTime "10:39:34 PDT"]
[Termination "djano won on time"]

1. e4 {[%clk 0:03:00.9]} 1... c5 {[%clk 0:02:59.8]} 2. Nf3 {[%clk 0:02:59.7]}
2... e6 {[%clk 0:03:00.1]} 3. d4 {[%clk 0:02:59.5]} 3... cxd4 {[%clk 0:03:01]}
4. Nxd4 {[%clk 0:02:59.9]} 4... a6 {[%clk 0:03:01.6]} 5. Bd3 {[%clk 0:02:59.2]}
5... g6 {[%clk 0:03:00.7]} 6. O-O {[%clk 0:02:58.1]} 6... Bg7 {[%clk 0:03:01.1]}
7. Be3 {[%clk 0:02:56.3]} 7... Nc6 {[%clk 0:03:01.2]} 8. Nxc6 {[%clk 0:02:53.5]}
8... bxc6 {[%clk 0:03:00.8]} 9. c3 {[%clk 0:02:50.1]} 9... Nf6 {[%clk
0:02:58.5]} 10. Nd2 {[%clk 0:02:48.4]} 10... O-O {[%clk 0:02:57.7]} 11. e5
{[%clk 0:02:43.2]} 11... Nd5 {[%clk 0:02:56.2]} 12. Bc5 {[%clk 0:02:40.3]} 12...
Bxe5 {[%clk 0:02:49.8]} 13. Bxf8 {[%clk 0:02:39.1]} 13... Qxf8 {[%clk
0:02:50.7]} 14. Re1 {[%clk 0:02:28.8]} 14... Bc7 {[%clk 0:02:50.3]} 15. Bf1
{[%clk 0:02:26.4]} 15... Rb8 {[%clk 0:02:47.5]} 16. Qc2 {[%clk 0:02:22.4]} 16...
f5 {[%clk 0:02:39.3]} 17. g3 {[%clk 0:02:18.4]} 17... a5 {[%clk 0:02:04.6]} 18.
Bg2 {[%clk 0:02:09.2]} 18... Ba6 {[%clk 0:02:04.1]} 19. Nb3 {[%clk 0:02:05.1]}
19... h5 {[%clk 0:01:46.8]} 20. Nd4 {[%clk 0:01:59.6]} 20... Qf6 {[%clk
0:01:38]} 21. Qd2 {[%clk 0:01:49]} 21... Kg7 {[%clk 0:01:33.8]} 22. f4 {[%clk
0:01:36.7]} 22... Bb6 {[%clk 0:01:29.4]} 23. Kh1 {[%clk 0:01:32.5]} 23... h4
{[%clk 0:01:29.7]} 24. Bf3 {[%clk 0:01:08.6]} 24... Rh8 {[%clk 0:01:19.6]} 25.
Kg2 {[%clk 0:01:04.3]} 25... a4 {[%clk 0:01:11.1]} 26. Be2 {[%clk 0:00:54]}
26... Bb7 {[%clk 0:01:09.3]} 27. Bf3 {[%clk 0:00:50.4]} 27... Ba5 {[%clk
0:01:00.4]} 28. Qd3 {[%clk 0:00:32.4]} 28... a3 {[%clk 0:00:58]} 29. b4 {[%clk
0:00:30.4]} 29... Bb6 {[%clk 0:00:55.1]} 30. Qd2 {[%clk 0:00:29.7]} 30... Nxc3
{[%clk 0:00:55]} 31. Nxc6 {[%clk 0:00:20.2]} 31... Bxc6 {[%clk 0:00:47.6]} 32.
Bxc6 {[%clk 0:00:18.4]} 32... dxc6 {[%clk 0:00:47.9]} 33. Qd7+ {[%clk
0:00:18.4]} 33... Qf7 {[%clk 0:00:47.3]} 34. Qxc6 {[%clk 0:00:18.2]} 34... Bd4
{[%clk 0:00:33.5]} 35. Rxe6 {[%clk 0:00:16.1]} 35... Bf6 {[%clk 0:00:33.6]} 36.
Rae1 {[%clk 0:00:12.8]} 36... Ne4 {[%clk 0:00:32]} 37. Rd1 {[%clk 0:00:09.6]}
37... Rd8 {[%clk 0:00:25.3]} 38. Rxd8 {[%clk 0:00:07.6]} 38... Bxd8 {[%clk
0:00:24.6]} 39. b5 {[%clk 0:00:07.5]} 39... hxg3 {[%clk 0:00:22.2]} 40. hxg3
{[%clk 0:00:06.6]} 40... Nc5 {[%clk 0:00:19.7]} 41. Rd6 {[%clk 0:00:04.7]} 41...
Qxa2+ {[%clk 0:00:19.6]} 42. Kh3 {[%clk 0:00:04.5]} 42... Ne4 {[%clk 0:00:10.8]}
43. Rxg6+ {[%clk 0:00:04.6]} 43... Kf7 {[%clk 0:00:11.3]} 44. Qd7+ {[%clk
0:00:02]} 44... Kxg6 {[%clk 0:00:11.1]} 0-1

[Event "*** Titled Tuesday Blitz"]
[Site "Chess.com"]
[Date "2020.05.12"]
[Round "4"]
[White "C_K_G"]
[Black "GrafLermontov"]
[Result "0-1"]
[WhiteElo "2009"]
[BlackElo "2377"]
[TimeControl "180+1"]
[EndTime "10:39:34 PDT"]
[Termination "GrafLermontov won on time"]

1. e4 {[%clk 0:03:00.9]} 1... c5 {[%clk 0:02:59.6]} 2. Nf3 {[%clk 0:03:00.7]}
2... e6 {[%clk 0:03:00]} 3. d4 {[%clk 0:03:00.2]} 3... cxd4 {[%clk 0:03:00.9]}
4. Nxd4 {[%clk 0:02:59.9]} 4... Nc6 {[%clk 0:03:01.3]} 5. Nc3 {[%clk 0:02:59.1]}
5... Qc7 {[%clk 0:03:01.1]} 6. Be2 {[%clk 0:02:57.8]} 6... a6 {[%clk 0:03:01.4]}
7. Be3 {[%clk 0:02:56.6]} 7... Nf6 {[%clk 0:03:01.7]} 8. O-O {[%clk 0:02:56]}
8... Bb4 {[%clk 0:02:57.6]} 9. Na4 {[%clk 0:02:48.5]} 9... O-O {[%clk
0:02:53.6]} 10. Nxc6 {[%clk 0:02:42.2]} 10... bxc6 {[%clk 0:02:48.7]} 11. Nb6
{[%clk 0:02:41.4]} 11... Rb8 {[%clk 0:02:48.7]} 12. Nxc8 {[%clk 0:02:36]} 12...
Rfxc8 {[%clk 0:02:45.6]} 13. Bd3 {[%clk 0:02:10.1]} 13... d5 {[%clk 0:02:43.5]}
14. Qf3 {[%clk 0:01:36.7]} 14... Bd6 {[%clk 0:02:35.3]} 15. h3 {[%clk
0:01:20.8]} 15... Rxb2 {[%clk 0:02:31]} 16. Bd4 {[%clk 0:01:20.4]} 16... Rb4
{[%clk 0:02:03.6]} 17. Bxf6 {[%clk 0:01:18.4]} 17... gxf6 {[%clk 0:02:03.8]} 18.
exd5 {[%clk 0:01:11.8]} 18... f5 {[%clk 0:01:25.1]} 19. dxe6 {[%clk 0:01:00.7]}
19... fxe6 {[%clk 0:01:26]} 20. c3 {[%clk 0:00:45.3]} 20... Rf4 {[%clk
0:01:19.9]} 21. Qh5 {[%clk 0:00:41.1]} 21... Qf7 {[%clk 0:01:11.8]} 22. Qxf7+
{[%clk 0:00:37]} 22... Kxf7 {[%clk 0:01:12.7]} 23. Bxa6 {[%clk 0:00:35.6]} 23...
Ra8 {[%clk 0:01:10.3]} 24. Be2 {[%clk 0:00:33.2]} 24... Rfa4 {[%clk 0:01:08]}
25. Bf3 {[%clk 0:00:32.1]} 25... Rc4 {[%clk 0:01:00.7]} 26. Rfd1 {[%clk
0:00:30.6]} 26... Ke7 {[%clk 0:00:54.2]} 27. a4 {[%clk 0:00:27.3]} 27... Rcxa4
{[%clk 0:00:46.4]} 28. Rxa4 {[%clk 0:00:25.8]} 28... Rxa4 {[%clk 0:00:47.3]} 29.
Bxc6 {[%clk 0:00:25.6]} 29... Rc4 {[%clk 0:00:48]} 30. Bf3 {[%clk 0:00:21.6]}
30... Rxc3 {[%clk 0:00:48.5]} 31. Rb1 {[%clk 0:00:21.7]} 31... Kf6 {[%clk
0:00:40.9]} 32. Kf1 {[%clk 0:00:20.6]} 32... Bc5 {[%clk 0:00:33.6]} 33. Be2
{[%clk 0:00:19.6]} 33... h6 {[%clk 0:00:32.3]} 34. g3 {[%clk 0:00:18]} 34... Rc2
{[%clk 0:00:26.7]} 35. h4 {[%clk 0:00:17.4]} 35... e5 {[%clk 0:00:25]} 36. Rb8
{[%clk 0:00:16.6]} 36... e4 {[%clk 0:00:18.1]} 37. Re8 {[%clk 0:00:14.5]} 37...
Rc1+ {[%clk 0:00:17.2]} 38. Kg2 {[%clk 0:00:14.3]} 38... Re1 {[%clk 0:00:17.6]}
39. Bf1 {[%clk 0:00:12.8]} 39... Rc1 {[%clk 0:00:15.3]} 40. Be2 {[%clk
0:00:10.9]} 40... Rc2 {[%clk 0:00:15.3]} 41. Bf1 {[%clk 0:00:10.4]} 41... Rxf2+
{[%clk 0:00:14.5]} 42. Kg1 {[%clk 0:00:09.6]} 42... Rd2+ {[%clk 0:00:13]} 43.
Kh1 {[%clk 0:00:07.9]} 43... e3 {[%clk 0:00:13.5]} 44. h5 {[%clk 0:00:06.5]}
44... Rf2 {[%clk 0:00:13.5]} 45. Bc4 {[%clk 0:00:04.4]} 45... Kg5 {[%clk
0:00:13.4]} 46. Re5 {[%clk 0:00:01.8]} 46... Bd4 {[%clk 0:00:11.4]} 0-1